Cogmind - Beta 16 @@@ ROGUE MODE // 2025.12.07 @ 23:27:21 Player: AngelSpirit Result: Destroyed by Piercing Trap Performance ------------- Evolutions (0) 0 Regions Visited (2) 400 Robots Destroyed (23) 115 Value Destroyed (472) 472 Prototype IDs (0) 0 Alien Tech Used (0) 0 Bonus (0) 0 TOTAL SCORE: 987 Bonus ------- None Cogmind --------- Core Integrity 0/250 Matter 295/300 Energy 168/170 System Corruption 0% Temperature Cool (0) Movement Rolling (160) Ox5 Location -10/Subcaves Parts ------- > --- POWER (1) -------- Makeshift Power Source > --- PROPULSION (2) --- Subdweller Monowheel > --- UTILITY (2) ------ Huge Storage Unit Sensor Array > --- WEAPON (2) ------- Subdweller Beam Cannon Subdweller Shrapnel Launcher > --- INVENTORY (25) --- Light Ion Engine Wheel Wheel Wheel Wheel High-capacity Matter Pod (200) High-capacity Matter Pod (122) Signal Interpreter Makeshift Kinetic Plating Subdweller Laser Subdweller Laser Subdweller Beam Cannon Subdweller Machine Gun Light Cannon Peak State ------------ > --- POWER ------------ Makeshift Power Source > --- PROPULSION ------- Wheel Subdweller Monowheel > --- UTILITY ---------- Huge Storage Unit Sensor Array > --- WEAPON ----------- Subdweller Beam Cannon Subdweller Shrapnel Launcher > --- INVENTORY -------- Light Ion Engine Wheel Wheel Wheel Wheel High-capacity Matter Pod High-capacity Matter Pod Signal Interpreter Makeshift Kinetic Plating Subdweller Laser Subdweller Laser Subdweller Beam Cannon Subdweller Machine Gun Light Cannon [Rating: 15] Favorites ----------- Power Light Ion Engine Engine Light Ion Engine Propulsion Wheel Wheel Wheel Utility Huge Storage Unit Device Sensor Array Storage Huge Storage Unit Weapon Battle Cannon Energy Gun Subdweller Laser Energy Cannon Subdweller Beam Cannon Ballistic Gun Light Assault Rifle Ballistic Cannon Battle Cannon Launcher Grenade Launcher Special Weapon Welding Torch Build | -11 -10 -10 ------- Run | Yrd Mat Sub Slots Evolved . | . . . Power . | . . . Propulsion . | . . . Utility . | . . . Weapon . | . . . Parts Attached 28 | 6 10 12 Power 5 | 1 1 3 Engine 5 | 1 1 3 Core . | . . . Reactor . | . . . Propulsion 4 | 2 . 2 Treads . | . . . Leg . | . . . Wheel 4 | 2 . 2 Hover . | . . . Flight . | . . . Utility 5 | 1 3 1 Device 2 | . 1 1 Storage 3 | 1 2 . Processor . | . . . Hackware . | . . . Protection . | . . . Artifact . | . . . Weapon 14 | 2 6 6 Energy Gun 4 | 2 . 2 Energy Cannon 2 | . 1 1 Ballistic Gun 2 | . 1 1 Ballistic Cannon 2 | . 1 1 Launcher 2 | . 1 1 Special Weapon 2 | . 2 . Impact Weapon . | . . . Slashing Weapon . | . . . Piercing Weapon . | . . . Special Melee Weapon . | . . . Unidentified Prototypes . | . . . Parts Lost 6 | . . 6 Power 2 | . . 2 Propulsion 2 | . . 2 Utility 1 | . . 1 Weapon 1 | . . 1 Highest Loss Streak 1 | . . 1 To Critical Strikes . | . . . Average Backups 10 | . 6 13 Power . | . . 1 Propulsion 3 | . 2 3 Utility 2 | . 1 3 Weapon 3 | . 1 4 Tool/Special . | . . . Unused Backups 14 | . . 14 Power 1 | . . 1 Propulsion 4 | . . 4 Utility 3 | . . 3 Weapon 6 | . . 6 Tool/Special . | . . . Average Slot Usage (%) 98 | . 97 99 Engine 13 | . 14 13 Wheel 27 | . 28 27 Device 13 | . 11 14 Storage 14 | . 14 14 Energy Gun 6 | . 6 6 Energy Cannon 8 | . 8 7 Ballistic Gun 3 | . 9 . Ballistic Cannon 7 | . 3 10 Launcher 2 | . . 3 Peak Build Rating 15 | 6 8 15 Average Rating 10 | 4 7 12 On Entrance 4 | . 6 8 Avg Prop Armor Cover (%) . | . . . Naked Turns . | . . . Heaviest Build 101 | 11 90 101 Greatest Support 30 | 26 26 30 Greatest Overweight (x) 5 | . 3 5 Average Overweight (x) 2 | . 2 3 Largest Inventory Capacity 25 | 8 25 25 Average Capacity 24 | 7 24 25 Most Carried 15 | . 14 15 Average Carried 10 | . 7 13 Final Capacity 25 | 8 25 25 Final Carried 14 | . 14 14 Class Distribution -------------------- 100% | Mutant Dominant Class ---------------- Mutant | -10/Materials Mutant | -10/Subcaves Resources | -11 -10 -10 ----------- Run | Yrd Mat Sub Matter Collected 1015 | 181 337 497 Remotely . | . . . Salvage Created 614 | . 388 226 Parts 33 | . 21 12 Haulers Intercepted 2 | . 2 . Recyclers Shooed 2 | . 2 . Parts Field Recycled . | . . . Retrieved Matter . | . . . Parts Self-Destructed 2 | . . 2 Prevented . | . . . Parts Restored . | . . . Kills | -11 -10 -10 ------- Run | Yrd Mat Sub Combat Hostiles Destroyed 17 | . 7 10 Guns 4 | . 3 1 Cannons 5 | . 1 4 AOE 8 | . 3 5 Classes Destroyed 6 | . 5 1 Hauler 2 | . 2 . Recycler 1 | . 1 . Watcher 3 | . 3 . Swarmer 9 | . 6 3 Grunt 1 | . 1 . Subdweller 7 | . . 7 Best Kill Streak 5 | . 5 3 Combat Bots Only 3 | . 3 3 Max Kills in Single Turn 3 | . 3 2 Gunslinging . | . . . Exploded 3 | . 3 2 Melee . | . . . Uniques/NPCs Destroyed . | . . . Combat | -11 -10 -10 -------- Run | Yrd Mat Sub Hostile Shots Fired 51 | . 18 33 Missed 12 | . 6 6 Hits 39 | . 12 27 Projectile 39 | . 12 27 Damage Taken 826 | . 115 711 Core 252 | . 28 224 Absorbed by Shields . | . . . Core Remaining (%) 100 | 100 . . Volleys Fired 71 | . 31 40 Largest 2 | . 2 2 Hottest 100 | . 100 93 Shots Fired 121 | . 60 61 Gun 68 | . 44 24 Cannon 39 | . 13 26 Launcher 12 | . 1 11 Special 2 | . 2 . Kinetic 38 | . 28 10 Thermal 71 | . 31 40 Explosive 12 | . 1 11 Electromagnetic . | . . . Robot Hit Streak 11 | . 10 11 Robot Miss Streak 3 | . 3 2 Penetration Max . | . . . Secondary Targets . | . . . Shots Hit Robots 71 | . 37 34 Core Hits 37 | . 21 16 Critical Kills . | . . . Critical Parts Destroyed . | . . . Critical Strikes 1 | . . 1 Destroy 1 | . . 1 Melee Attacks . | . . . Impact . | . . . Slashing . | . . . Piercing . | . . . Sneak Attacks . | . . . Combat Hostiles . | . . . Follow-up Attacks . | . . . Damage Inflicted 1676 | . 590 1086 Guns 612 | . 282 330 Cannons 353 | . 146 207 Explosions 711 | . 162 549 Melee . | . . . Ramming . | . . . Kinetic 330 | . 159 171 Thermal 635 | . 269 366 Explosive 711 | . 162 549 Electromagnetic . | . . . Impact . | . . . Slashing . | . . . Piercing . | . . . Highest Corruption . | . . . Average Corruption . | . . . Corruption Purged . | . . . Corruption Blocked . | . . . Overload Shots . | . . . Overflow Damage 23 | . . 23 Projectiles . | . . . Explosions 23 | . . 23 Melee . | . . . Knockbacks . | . . . Impact . | . . . Kinetic . | . . . Secondary . | . . . Self-Inflicted Damage 109 | . 19 90 Shots 5 | . 1 4 Rammed . | . . . Targets Rammed . | . . . Kicked . | . . . Crushed . | . . . Highest Temperature 106 | . 106 20 Average Temperature 31 | . 37 8 Received Heat Transfer 117 | . 12 105 Siege Activations . | . . . Martial Activations . | . . . Shielding Activations . | . . . Robots Disrupted . | . . . Combat Hostiles . | . . . Robots Corrupted . | . . . Combat Hostiles . | . . . Parts Fried . | . . . Impact Corruptions . | . . . Robots Melted . | . . . Combat Hostiles . | . . . Parts Melted 1 | . . 1 Heat Transferred 1140 | . 666 474 Parts Sabotaged . | . . . Parts Stolen . | . . . Parts Stripped . | . . . Power Chain Reactions . | . . . Alert | -11 -10 -10 ------- Run | Yrd Mat Sub Maximum Alert Level . | . . . Low Security (%) 100 | 100 100 . Level 1 . | . . . Level 2 . | . . . Level 3 . | . . . Level 4 . | . . . Level 5 . | . . . High Security . | . . . Max Security . | . . . Peak Influence 136 | . 136 . Initial . | . . . Average 37 | . 38 . Influence Increases 333 | . 263 70 Destroy 0b10 Robot/C 200 | . 140 60 Destroy 0b10 Robot/NC 30 | . 30 . Destroy Leader 50 | . 40 10 Trap Triggered on 0b10 10 | . 10 . Successful Hack 21 | . 21 . Disable Machine 15 | . 15 . Destroy Structure 7 | . 7 . Influence Decreases 333 | . 213 120 Entered New Map 25 | . . 25 Time Decay 288 | . 213 75 Lost Part 20 | . . 20 Squads Dispatched 1 | . 1 . Investigation 1 | . 1 . Extermination . | . . . Reinforcement . | . . . Assault . | . . . Garrison . | . . . Intercept . | . . . Searches Triggered . | . . . Construction Impeded . | . . . Haulers Reinforced . | . . . Active Scanning Responses . | . . . Cargo Convoy Interrupts . | . . . Stealth | -11 -10 -10 --------- Run | Yrd Mat Sub Distress Signals . | . . . Communications Jammed . | . . . Distress Signals . | . . . Times Spotted 22 | . 12 10 Peak Tracking Total 3 | . 3 3 Tactical Retreats . | . . . Traps | -11 -10 -10 ------- Run | Yrd Mat Sub Traps Triggered 5 | . 2 3 Indirectly . | . . . Trap Hack Attempts . | . . . Triggered . | . . . Disarmed . | . . . Reprogrammed 2 | . 2 . Reused 1 | . 1 . Traps Extracted . | . . . Installed . | . . . Triggered 1 | . 1 . Machines | -11 -10 -10 ---------- Run | Yrd Mat Sub Machines Disabled 1 | . 1 . Max in Single Turn 1 | . 1 . Machines Repaired . | . . . Machines Dismantled . | . . . Machines Sabotaged . | . . . Overloaded Fab Kills . | . . . Hacking | -11 -10 -10 --------- Run | Yrd Mat Sub Machines Accessed 8 | . 8 . Terminals 6 | . 6 . Fabricators . | . . . Repair Stations . | . . . Recycling Units 2 | . 2 . Scanalyzers . | . . . Garrison Access . | . . . Total Hacks 22 | . 22 . Successful 11 | . 11 . Failed 11 | . 11 . Catastrophic 1 | . 1 . Database Lockouts . | . . . Manual 5 | . 5 . Terminals 19 | . 19 . Fabricators . | . . . Repair Stations . | . . . Recycling Units 3 | . 3 . Scanalyzers . | . . . Garrison Access . | . . . Terminal Hacks 7 | . 7 . Robot Analysis 2 | . 2 . Locate Traps 2 | . 2 . Reprogram Traps 1 | . 1 . Zone Layout 2 | . 2 . Fabricator Hacks . | . . . Repair Station Hacks . | . . . Recycling Unit Hacks 1 | . 1 . Retrieve Components 1 | . 1 . Scanalyzer . | . . . Garrison Access Hacks . | . . . Unauthorized Hacks 3 | . 3 . Terminals 3 | . 3 . Botnet 2 | . 2 . Operators 1 | . 1 . Fabricators . | . . . Repair Stations . | . . . Recycling Units . | . . . Scanalyzers . | . . . Garrison Access . | . . . Data Cores Recovered . | . . . Used . | . . . Hacking Detections 7 | . 7 . Full Trace Events . | . . . Feedback Events . | . . . Feedback Blocked . | . . . Robot Schematics Acquired . | . . . Robots Built . | . . . Authchips . | . . . Time . | . . . Total Robot Build Rating . | . . . Part Schematics Acquired . | . . . Parts Built . | . . . Authchips . | . . . Time . | . . . Total Part Build Rating . | . . . Part Studies Acquired . | . . . Parts Repaired . | . . . Time . | . . . Parts Recycled . | . . . Recycled Matter . | . . . Retrieved Matter . | . . . Retrieved Components 9 | . 9 . Parts Scanalyzed . | . . . Part Schematics Acquired . | . . . Parts Damaged . | . . . Bothacking | -11 -10 -10 ------------ Run | Yrd Mat Sub Used RIF Installer . | . . . Robots Hacked . | . . . Non-combat . | . . . Combat . | . . . Robot Hacks Applied . | . . . Relay Couplers Released . | . . . Fabnet Peak Effective % . | . . . Robots Rewired . | . . . Allies Hacked . | . . . Hacks Repelled . | . . . Allies | -11 -10 -10 -------- Run | Yrd Mat Sub Total Allies . | . . . Largest Group . | . . . Highest-Rated Group . | . . . Highest-Rated Ally . | . . . Total Orders . | . . . Ally Attacks . | . . . Total Damage . | . . . Kills . | . . . Allies Corrupted . | . . . Allies Melted . | . . . Intel | -11 -10 -10 ------- Run | Yrd Mat Sub Active Infowar (turns) 2072 | . 727 1345 Sensors 2072 | . 727 1345 Robot Analysis Total 2 | . 2 . Derelict Logs Recovered 1 | . . 1 Drone Launches . | . . . Drone Recoveries . | . . . Exploration | -11 -10 -10 ------------- Run | Yrd Mat Sub Turns Passed 2235 | 35 854 1346 Spaces Moved 1411 | 29 489 893 Core 1 | 1 . . Treads . | . . . Legs . | . . . Wheels 1410 | 28 489 893 Hover . | . . . Flight . | . . . Fastest Speed 50 | 50 90 131 Average Speed 131 | 91 131 133 Slowest Speed 175 | 100 135 175 Overloaded Moves . | . . . Propulsion Burnouts . | . . . Robots Hopped . | . . . Potential Cave-ins . | . . . Cave-ins Triggered . | . . . Exploration Rate (%) 44 | 3 87 43 Regions Visited 2 Branch Regions 1 Pre-discovered Areas 1 | . . 1 Known Exits Taken . | . . . Unknown Exits Taken 2 | 1 1 . Scrap Searched 3 | . . 3 Spaces Dug . | . . . Terrain Destroyed 68 | . 7 61 Melee . | . . . Projectile 1 | . . 1 AOE 67 | . 7 60 Terrain Rammed . | . . . Walls Destroyed . | . . . Machines Disabled . | . . . Actions | -11 -10 -10 --------- Run | Yrd Mat Sub Total 1660 | 34 641 985 Wait 106 | . 83 23 Move 1409 | 28 488 893 Hop . | . . . Pick Up 22 | . 16 6 Fast Attach 20 | 6 7 7 Attach 5 | . 2 3 Detach 1 | . 1 . Swap 8 | . 5 3 Drop 18 | . 8 10 Fire 71 | . 31 40 Melee . | . . . Ram . | . . . Kick . | . . . Crush . | . . . Escape Stasis . | . . . Rewire . | . . . Trap . | . . . Miscellaneous . | . . . Route ------- -11/Scrapyard -10/Materials (discovered 5 exits: [*Mat x2] / [*Min x2] / [*Sub]) -10/Subcaves (discovered 1 exit: [*Mat]) History --------- Turn | Location | Event 11 | -11/Scrapyard | Discovered new exit (range 15) 36 | -11/Scrapyard | Entered Materials 109 | -10/Materials | Discovered new exit (range 15) 317 | -10/Materials | Build established: Mutant 322 | -10/Materials | Discovered new exit (range 16) 672 | -10/Materials | Discovered new exit (range 6) 762 | -10/Materials | Discovered new exit (range 16) 875 | -10/Materials | Discovered new exit (range 8) 890 | -10/Materials | Entered Subcaves 988 | -10/Subcaves | Shifting Twisted Machinery released Enh. Flamer 1058 | -10/Subcaves | Shifting Twisted Machinery released Sub. Laser 1062 | -10/Subcaves | Learned location of Zion (-6) 1062 | -10/Subcaves | Met a Zionite searching for "candidates" 1066 | -10/Subcaves | Discovered new exit (range 6) 1098 | -10/Subcaves | A swath of the cavern ceiling suddenly collapsed 1148 | -10/Subcaves | Core integrity fell below 50% 1362 | -10/Subcaves | Ambushed by Subdwellers from Twisted Machinery 1368 | -10/Subcaves | Core integrity fell below 20% 1606 | -10/Subcaves | Learned Materials emergency access door positions 1834 | -10/Subcaves | Shifting Twisted Machinery released Sub. Beam Cannon 1858 | -10/Subcaves | Shifting Twisted Machinery released Sub. Laser 2236 | -10/Subcaves | Destroyed by Piercing Trap Last Messages --------------- 02164_ Acquired Sub. Shrapnel Launcher. 02165_ Searching scrap... 02165_ Found Sub. Machine Gun. 02165_ Found Mak. Hammer. 02165_ Found 61 Matter. 02166_ Acquired 61 matter. 02167_ Searching scrap... 02167_ Found Barrage Gun. 02167_ Found 35 Matter. 02168_ Acquired 35 matter. 02172_ Acquired Sub. Machine Gun. 02203_ Triggered Shrapnel Trap. 02203_ An expanding cloud of shrapnel blasts out in all directions. 02203_ Sensor Array destroyed. 02219_ Acquired Mak. Kinetic Plating. 02236_ Triggered Piercing Trap. 02236_ Spikes shoot up from the floor. 02236_ Critical hit (Impale). 02236_ Wheel destroyed. Map ----- +----------------------------------------------------+ | ### ### #?????????????????????????????? | | ## #?????????????????????????????? | | #???# #?????????????????????????????? | | #???## #?????????????????????????????? | | # #????# #?????????????????????????????? | | ## ##???# ##?????????????????????????????? | | ## ###### ###?????????????????????????????? | | # ### # #?????????????????????????????? | | ##### # & #?????????????????????????????? | | ?##### # #??????????????????????######?? | | ## ### #### #??????????????????????# []"##? | | # ## #??????????????????????##"/ #? | | #???????????????????????#### #? | | ####???????????????????????# "#? | | * ## ### ##????????????????????????### ###? | | #### # ##?????????????????????????# " "##? | | ##?# #?????????????????####????# ## | | ### #?????????????????# ###### # | | #??????????????????# ## | | #??????####???????## ### | | ##### #?????## #???????# # ### ### | | ##???## ##???## #?????### ## ## | | #####??## ##??# ##???## ## ### # | | ### ###?#" ##??# ##??# ## ## | | ## " ###& #??# #### ## | | "" "" ! # ##??# @ ## #### # | | "" " %=[ ## ##???# ##### ###### | | "" [[## ###????# #???### #???? | | # "& #####??????# ##?????# #???? | | #" # ##????????## #?????## ##??? | | #" # # #?###?????## #????## #?? | | ##### ##### ###????# #???## #" #" #? | | ????# "" "" ##???## ##?### ##### #? | | ???## # "" "" #????# #### ##???? | | ???# # "" | #????# ###?????? | | #### " ### "" ##???# ##???##??? | | ## "" #" ##?####" #???# #??### ??? | | " ######????##" ##???## #??? ???? | | "" #????##### "#?????###### #??? ???? | | ""###" #????# ##??????????## #???? #???? | | "##?#" #??#### ##????????????###????? ^#???? | | %#??# #?## ### ##?????????????????????# ?????? | | #?## ### # ######???????????####????## ?????? | | #?# ## ### ##?????????## ##???? ^ ##???? | | ##?#" " # < # ##??####?## ##????# ##??? | | #??#" "## [ #??# ### #?????# ##?? | | #??# # # ##??# #??????# #?? | | #??### #??## # ## #?###?## ### | | ?????# ### #??# ####### ### ### # | | ?????# ##?# ##?# #### ### ## ## | +----------------------------------------------------+ Best States ------------- Heat Dissipation 25 Energy Generation 15 Energy Capacity 200 Matter Stores 300 Matter Capacity 300 Sight Range 16 Robot Scan Range 14 Terrain Scan Density 10 Evasion (%) 42 Item Schematics ----------------- None Robot Schematics ------------------ None Fabricated ------------ Nothing Repaired ---------- Nothing Studied --------- None Alien Tech Used ----------------- None Achievements -------------- None Challenges ------------ None Game ------ Seed AssembledGaussBeamcaster Manual? 0 Play Time 00:15:00 Cumulative 162.3 hours Start 2025.12.07 @ 23:14:36 End 2025.12.07 @ 23:27:21 Sessions 1 Manual Loads 0 Difficulty Rogue Special Mode None Game No. 94 Rogue 94 Adventurer 0 Explorer 0 Win Type - Total 1 Types 1/0/0/0/0/0/0/0/0/0 Lore% 69 Gallery% 62 Achievement% 51 Wizard Run 0 Options --------- Layout 1 ASCII 0 Keyboard 0 Movement Mouse Keybinds 0 Fullscreen 2 Font 32/SmallcapsGlow Map View 50x35 Zoom Use 0% Tactical HUD 1 Map Filters NONE Filters NONE Steam 1 RUN: e6d3337c-0154-49b8-a083-5f55cf5de650